bitfinex/quotes_SOLUSD_20240606
["timestamp","ask_amount","ask_price","bid_price","bid_amount"]
[1717637311522,7.19,173.92,173.9,120.0]
[1717637311706,7.19,173.97,173.9,120.0]
[1717637311707,7.19,173.91,173.9,120.0]
[1717637313300,28.76,173.97,173.9,120.0]
[1717637314110,7.19,173.92,173.9,120.0]
[1717637314310,28.76,173.97,173.9,120.0]
[1717637314807,7.19,173.92,173.9,120.0]
[1717637315014,28.76,173.97,173.9,120.0]
[1717637315313,28.76,173.97,173.92,120.0]
[1717637315506,7.19,173.93,173.92,120.0]
[1717637316225,6.4272,174.03,173.92,120.0]
[1717637316410,7.19,173.95,173.92,120.0]
[1717637317022,7.19,173.94,173.92,120.0]
[1717637317220,7.19,173.93,173.9,120.0]
[1717637317423,7.19,173.91,173.9,120.0]
[1717637324120,28.76,173.97,173.9,120.0]
[1717637324320,7.19,173.92,173.91,8.59477694]
[1717637324521,28.76,173.97,173.92,120.0]
[1717637324729,7.19,173.93,173.92,120.0]
[1717637328852,42.44690551,174.02,173.92,120.0]
[1717637329042,7.19,173.95,173.94,120.0]
[1717637331738,42.44690551,174.02,173.94,120.0]
[1717637332036,6.4272,174.03,173.94,120.0]
[1717637332442,7.19,173.95,173.94,120.0]
[1717637334054,7.19,173.98,173.97,120.0]
[1717637334247,7.19,173.98,173.95,120.0]
[1717637334545,7.19,173.96,173.95,120.0]
[1717637335541,7.19,173.96,173.93,120.0]
[1717637335935,7.19,173.95,173.93,120.0]
[1717637340351,7.19,173.96,173.95,120.0]
[1717637341139,6.4378,174.03,173.97,120.0]
[1717637341454,7.19,173.98,173.97,120.0]
[1717637344433,7.19,173.98,173.93,120.0]
[1717637344750,6.4378,174.03,173.93,120.0]
[1717637344954,6.4378,174.03,173.95,120.0]
[1717637345157,7.19,173.96,173.95,120.0]
[1717637347456,6.4378,174.03,173.95,120.0]
[1717637347638,7.19,173.96,173.95,120.0]
[1717637351043,7.19,173.96,173.9,21.2083]
[1717637351044,7.19,173.96,173.92,120.0]
[1717637351239,7.19,173.93,173.92,120.0]
[1717637352254,7.19,173.93,173.9,120.0]
[1717637352549,7.19,173.91,173.9,120.0]
[1717637353051,28.76,173.97,173.9,120.0]
[1717637353251,7.19,173.91,173.9,120.0]
[1717637356966,28.76,173.97,173.9,120.0]
[1717637357166,7.19,173.93,173.9,120.0]
[1717637357363,6.4378,174.03,173.92,120.0]
[1717637357662,7.19,173.93,173.92,120.0]
[1717637359871,6.4378,174.03,173.94,120.0]
[1717637360375,7.19,173.96,173.94,120.0]
[1717637362049,6.4378,174.03,173.94,120.0]
[1717637362370,7.19,173.96,173.94,120.0]
[1717637363271,6.4378,174.03,173.94,120.0]
[1717637363649,7.19,173.96,173.94,120.0]
[1717637364370,6.4378,174.03,173.96,120.0]
[1717637364557,7.19,173.97,173.96,120.0]
[1717637365973,6.4378,174.03,173.96,120.0]
[1717637366180,7.19,173.98,173.96,120.0]
[1717637367265,28.76,174.06,173.98,120.0]
[1717637367669,7.19,174.01,173.98,120.0]
[1717637368363,6.49,174.07,173.98,120.0]
[1717637368561,6.4061,174.11,174.0,120.0]
[1717637369266,7.19,174.03,174.0,120.0]
[1717637370585,6.4061,174.11,174.02,120.0]
[1717637370760,7.19,174.03,174.02,120.0]
[1717637372283,6.4061,174.11,174.02,120.0]
[1717637372489,7.19,174.03,174.02,120.0]
[1717637375290,6.4061,174.11,174.02,120.0]
[1717637375486,7.19,174.03,174.02,120.0]
[1717637377680,6.4061,174.11,174.02,120.0]
[1717637377887,7.19,174.03,174.02,120.0]
[1717637390693,6.4061,174.11,174.02,120.0]
[1717637390990,7.19,174.03,174.02,120.0]
[1717637391591,6.4061,174.11,174.02,120.0]
[1717637391785,7.19,174.04,174.02,120.0]
[1717637391985,7.19,174.03,174.02,120.0]
[1717637392380,7.19,174.03,174.02,136.3397]
[1717637392683,73.14432602,174.15,174.06,120.0]
[1717637392886,7.19,174.07,174.06,120.0]
[1717637399391,7.19,174.07,174.04,120.0]
[1717637399597,7.19,174.05,174.02,120.0]
[1717637399894,7.19,174.03,174.02,120.0]
[1717637400092,73.14432602,174.15,174.04,120.0]
[1717637400296,7.19,174.05,174.04,120.0]
[1717637401694,7.19,174.05,174.02,120.0]
[1717637401896,7.19,174.03,174.02,120.0]
[1717637404991,73.14432602,174.15,174.04,120.0]
[1717637405192,7.19,174.05,174.04,120.0]
[1717637406995,73.14432602,174.15,174.04,120.0]
[1717637407198,20.0,174.14,174.04,120.0]
[1717637407397,7.19,174.05,174.04,120.0]
[1717637407597,20.0,174.14,174.04,120.0]
[1717637407799,7.19,174.05,174.04,120.0]
[1717637408613,20.0,174.14,174.04,120.0]
[1717637408792,7.19,174.05,174.04,120.0]
[1717637410507,20.0,174.14,174.04,120.0]
[1717637410707,20.0,174.14,174.05,120.0]
[1717637410909,7.19,174.07,174.05,120.0]
[1717637412198,7.19,174.06,174.05,120.0]
[1717637413219,20.0,174.14,174.05,120.0]
[1717637413514,7.19,174.06,174.05,120.0]
[1717637416217,20.0,174.14,174.05,120.0]
[1717637416411,7.19,174.06,174.05,120.0]
[1717637417517,20.0,174.14,174.05,120.0]
[1717637417821,7.19,174.06,174.05,120.0]
[1717637420828,20.0,174.14,174.05,120.0]
[1717637421026,7.19,174.06,174.05,120.0]
[1717637423329,7.19,174.06,174.03,120.0]
[1717637423530,7.19,174.04,174.03,120.0]
[1717637425735,20.0,174.14,174.03,120.0]
[1717637425938,20.0,174.14,174.05,120.0]
[1717637426312,28.76,174.15,174.07,120.0]
[1717637426514,7.19,174.08,174.07,120.0]
[1717637427348,28.76,174.15,174.07,120.0]
[1717637428016,6.4692,174.17,174.07,120.0]
[1717637428219,6.4692,174.17,174.09,120.0]
[1717637428638,7.19,174.1,174.09,120.0]
[1717637428931,28.76,174.15,174.09,120.0]
[1717637429233,7.19,174.1,174.09,120.0]
[1717637430340,28.76,174.15,174.09,120.0]
[1717637430525,7.19,174.1,174.09,120.0]
[1717637430725,28.76,174.15,174.09,120.0]
[1717637430920,7.19,174.11,174.09,120.0]
[1717637431532,28.76,174.15,174.11,120.0]
[1717637431733,7.19,174.12,174.11,120.0]
[1717637432319,0.385822,174.19,174.11,120.0]
[1717637432521,20.385822,174.19,174.11,120.0]
[1717637433020,7.19,174.12,174.11,120.0]
[1717637435842,20.385822,174.19,174.11,120.0]
[1717637436037,7.19,174.12,174.11,120.0]
[1717637439556,20.385822,174.19,174.11,120.0]
[1717637439852,0.385822,174.19,174.13,120.0]
[1717637440145,0.385822,174.19,174.15,120.0]
[1717637440354,7.19,174.16,174.15,120.0]
[1717637440941,0.385822,174.19,174.15,120.0]
[1717637441154,7.19,174.16,174.15,120.0]
[1717637444051,7.19,174.16,174.13,120.0]
[1717637444249,7.19,174.14,174.13,120.0]
[1717637444961,0.385822,174.19,174.13,120.0]
[1717637445165,7.19,174.14,174.13,120.0]
[1717637445366,7.19,174.14,174.11,120.0]
[1717637445549,7.19,174.13,174.11,120.0]
[1717637447159,7.19,174.12,174.11,120.0]
[1717637451876,7.19,174.12,174.07,120.0]
[1717637452164,7.19,174.08,174.07,120.0]
[1717637453766,28.76,174.15,174.1,120.0]
[1717637454065,7.19,174.11,174.1,120.0]
[1717637454251,0.385822,174.19,174.1,120.0]
[1717637454448,28.76,174.15,174.1,120.0]
[1717637454656,7.19,174.11,174.1,120.0]
[1717637454860,28.76,174.15,174.1,120.0]
[1717637455039,7.19,174.11,174.1,120.0]
[1717637457070,0.385822,174.19,174.12,120.0]
[1717637457271,7.19,174.13,174.12,120.0]
[1717637461666,0.385822,174.19,174.14,120.0]
[1717637461878,7.19,174.15,174.14,120.0]
[1717637462480,0.385822,174.19,174.14,120.0]
[1717637462656,7.19,174.15,174.14,120.0]
[1717637464069,6.19,174.15,174.14,120.0]
[1717637464851,0.385822,174.19,174.14,120.0]
[1717637465080,7.19,174.15,174.14,120.0]
[1717637465254,0.385822,174.19,174.14,120.0]
[1717637465451,0.385822,174.19,174.16,120.0]
[1717637465760,7.19,174.17,174.16,120.0]
[1717637466154,0.385822,174.19,174.16,120.0]
[1717637466355,7.19,174.17,174.16,120.0]
[1717637470266,7.19,174.17,174.14,120.0]
[1717637470577,7.19,174.15,174.14,120.0]
[1717637471279,7.19,174.16,174.15,120.0]
[1717637471773,0.385822,174.19,174.15,120.0]
[1717637471989,7.19,174.16,174.15,120.0]
[1717637480782,0.385822,174.19,174.15,120.0]
[1717637480987,7.19,174.16,174.15,120.0]
[1717637485189,0.385822,174.19,174.15,120.0]
[1717637485490,7.19,174.16,174.15,120.0]
[1717637486896,0.385822,174.19,174.15,120.0]
[1717637487071,7.19,174.16,174.15,120.0]
[1717637488986,7.19,174.16,174.13,120.0]
[1717637489165,7.19,174.14,174.13,120.0]
[1717637493779,0.385822,174.19,174.15,120.0]
[1717637494099,7.19,174.16,174.15,120.0]
[1717637497388,0.385822,174.19,174.17,120.0]
[1717637497698,7.575822,174.19,174.17,120.0]
[1717637497896,0.385822,174.19,174.17,120.0]
[1717637503203,7.575822,174.19,174.17,120.0]
[1717637505102,0.385822,174.19,174.17,120.0]
[1717637505326,7.575822,174.19,174.17,120.0]
[1717637505626,0.385822,174.19,174.17,120.0]
[1717637508239,7.575822,174.19,174.17,120.0]
[1717637509223,7.19,174.18,174.17,120.0]
[1717637509406,0.385822,174.19,174.17,120.0]
[1717637509599,7.19,174.18,174.17,120.0]
[1717637510421,0.385822,174.19,174.17,120.0]
[1717637510625,7.19,174.18,174.17,120.0]
[1717637512712,0.385822,174.19,174.17,120.0]
[1717637512908,7.19,174.18,174.17,120.0]
[1717637515427,7.575822,174.19,174.17,120.0]
[1717637517125,7.19,174.18,174.17,120.0]
[1717637517326,0.385822,174.19,174.17,120.0]
[1717637522125,7.19,174.18,174.17,120.0]
[1717637529746,0.385822,174.19,174.17,120.0]
[1717637537852,0.385822,174.19,174.17,126.1099]
[1717637538187,0.385822,174.19,174.18,0.17]
[1717637538333,0.385822,174.19,174.18,0.34]
[1717637543658,0.385822,174.19,174.18,6.6046]
[1717637545571,0.385822,174.19,174.18,49.8826]
[1717637546654,0.385822,174.19,174.18,42.6926]
[1717637547245,0.385822,174.19,174.18,26.6046]
[1717637547450,0.385822,174.19,174.18,20.34]
[1717637550255,0.385822,174.19,174.18,34.1578]
[1717637551881,0.385822,174.19,174.18,154.1578]
[1717637552254,0.385822,174.19,174.18,169.4641]
[1717637552553,0.8255597,174.22,174.21,120.0]
[1717637552771,0.8255597,174.22,174.21,140.34]
[1717637553483,0.8255597,174.22,174.21,147.53]
[1717637554181,0.8255597,174.22,174.21,169.8403]
[1717637554489,0.8255597,174.22,174.21,162.6503]
[1717637554660,0.8255597,174.22,174.21,169.8403]
[1717637556078,0.8255597,174.22,174.21,154.0553]
[1717637557083,0.8255597,174.22,174.21,146.8653]
[1717637557687,0.8255597,174.22,174.21,140.34]
[1717637558365,0.8255597,174.22,174.21,140.0]
[1717637558760,0.8255597,174.22,174.21,120.0]
[1717637558761,8.0155597,174.22,174.21,120.0]
[1717637558962,8.0155597,174.22,174.19,120.0]
[1717637559263,7.19,174.21,174.19,120.0]
[1717637560962,0.8255597,174.22,174.21,120.0]
[1717637561168,8.0155597,174.22,174.21,120.0]
[1717637563289,8.0155597,174.22,174.19,120.0]
[1717637563492,7.19,174.21,174.19,120.0]
[1717637563866,0.8255597,174.22,174.21,120.0]
[1717637564067,8.0155597,174.22,174.21,120.0]
[1717637564572,0.8255597,174.22,174.19,120.0]
[1717637564770,7.19,174.21,174.19,120.0]
[1717637567879,0.8255597,174.22,174.19,120.0]
[1717637568280,8.0155597,174.22,174.19,120.0]
[1717637568597,0.8255597,174.22,174.19,120.0]
[1717637569113,8.0155597,174.22,174.19,120.0]
[1717637569601,0.8255597,174.22,174.19,120.0]
[1717637569890,8.0155597,174.22,174.19,120.0]
[1717637570074,8.0155597,174.22,174.21,120.0]
[1717637570075,0.8255597,174.22,174.21,120.0]
[1717637570274,8.0155597,174.22,174.21,120.0]
[1717637570492,0.8255597,174.22,174.21,120.0]
[1717637574882,8.0155597,174.22,174.19,120.0]
[1717637575083,7.19,174.21,174.19,120.0]
[1717637575482,0.8255597,174.22,174.21,120.0]
[1717637575683,8.0155597,174.22,174.19,120.0]
[1717637575883,7.19,174.21,174.19,120.0]
[1717637579799,7.19,174.2,174.19,120.0]
[1717637581415,7.19,174.2,174.17,120.0]
[1717637581589,7.19,174.18,174.15,120.0]
[1717637581790,0.8255597,174.22,174.15,120.0]
[1717637582002,6.3437,174.21,174.17,120.0]
[1717637582311,7.19,174.18,174.17,120.0]
[1717637582611,6.3437,174.21,174.17,120.0]
[1717637582989,7.19,174.18,174.17,120.0]
[1717637584611,7.19,174.18,174.13,120.0]
[1717637585108,7.19,174.15,174.13,120.0]
[1717637587814,7.19,174.14,174.13,120.0]
[1717637588618,6.3437,174.21,174.13,120.0]
[1717637588795,7.19,174.14,174.13,120.0]
[1717637589185,6.3437,174.21,174.13,120.0]
[1717637589387,7.19,174.15,174.13,120.0]
[1717637589800,7.19,174.14,174.13,120.0]
[1717637591597,6.3437,174.21,174.13,120.0]
[1717637592105,7.19,174.14,174.13,120.0]
[1717637594034,6.3437,174.21,174.13,120.0]
[1717637594195,7.19,174.14,174.13,120.0]
[1717637598323,7.19,174.14,174.11,120.0]
[1717637598519,7.19,174.13,174.11,120.0]
[1717637598817,7.19,174.12,174.11,120.0]
[1717637599160,7.19,174.13,174.11,120.0]
[1717637602827,7.19,174.14,174.11,120.0]
[1717637603628,6.3437,174.21,174.11,120.0]
[1717637603838,6.3437,174.21,174.13,120.0]
[1717637604318,7.19,174.14,174.13,120.0]
[1717637606516,6.3437,174.21,174.13,120.0]
[1717637606728,7.19,174.15,174.13,120.0]
[1717637607832,6.3437,174.21,174.13,120.0]
[1717637608132,7.19,174.15,174.13,120.0]
[1717637611151,6.3437,174.21,174.13,120.0]
[1717637611438,6.3437,174.21,174.15,120.0]
[1717637611915,7.19,174.16,174.15,120.0]
[1717637612118,6.3437,174.21,174.15,120.0]
[1717637612419,7.19,174.16,174.15,120.0]
[1717637612618,6.3437,174.21,174.15,120.0]
[1717637613136,7.19,174.16,174.15,120.0]
[1717637613321,7.19,174.17,174.15,120.0]
[1717637616042,0.8255597,174.22,174.15,120.0]
[1717637616227,7.19,174.17,174.15,120.0]
[1717637619030,7.19,174.16,174.15,120.0]
[1717637628149,7.19,174.16,174.08,6.3244]
[1717637628357,0.8255597,174.22,174.13,120.0]
[1717637628563,7.19,174.14,174.13,120.0]
[1717637632336,7.19,174.14,174.11,120.0]
[1717637632557,6.0034,174.2,174.11,120.0]
[1717637632754,6.0034,174.2,174.04,13.85535526]
[1717637632755,7.19,174.12,174.09,120.0]
[1717637633063,28.76,174.15,174.09,120.0]
[1717637633064,7.19,174.1,174.09,120.0]
[1717637634065,28.76,174.15,174.09,120.0]
[1717637634239,20.0,174.19,174.11,120.0]
[1717637634441,7.19,174.12,174.11,120.0]
[1717637635165,20.0,174.19,174.11,120.0]
[1717637635551,7.19,174.12,174.11,120.0]
[1717637638478,20.0,174.19,174.11,120.0]
[1717637638656,7.19,174.12,174.11,120.0]
[1717637639277,7.19,174.12,174.09,120.0]
[1717637639464,20.0,174.19,174.09,120.0]
[1717637639465,7.19,174.15,174.09,120.0]
[1717637639667,7.19,174.1,174.09,120.0]
[1717637640170,20.0,174.19,174.11,120.0]
[1717637640380,7.19,174.12,174.11,120.0]
[1717637640578,7.19,174.12,174.08,120.0]
[1717637640781,7.19,174.09,174.08,120.0]
[1717637642257,7.19,174.09,174.06,120.0]
[1717637642453,7.19,174.07,174.06,120.0]
[1717637644891,20.0,174.19,174.09,120.0]
[1717637645064,20.0,174.19,174.11,120.0]
[1717637645263,28.76,174.15,174.11,120.0]
[1717637645567,28.76,174.15,174.09,120.0]
[1717637646183,7.19,174.11,174.09,120.0]
[1717637646690,7.19,174.12,174.09,120.0]
[1717637647580,7.19,174.13,174.11,120.0]
[1717637647772,20.0,174.19,174.11,120.0]
[1717637648177,7.19,174.15,174.13,120.0]
[1717637651592,6.0034,174.2,174.13,120.0]
[1717637651794,7.19,174.16,174.13,120.0]
[1717637652499,16.5373,174.23,174.15,120.0]
[1717637652793,34.8849,174.24,174.15,120.0]
[1717637652990,7.19,174.18,174.15,120.0]
[1717637655280,34.8849,174.24,174.13,120.0]
[1717637655476,7.19,174.14,174.11,120.0]
[1717637656702,0.34,174.23,174.13,120.0]
[1717637656906,7.19,174.16,174.13,120.0]
[1717637657202,7.19,174.17,174.13,120.0]
[1717637657394,7.19,174.16,174.13,120.0]
[1717637657590,7.19,174.16,174.1,6.5445]
[1717637657591,34.8849,174.24,174.15,120.0]
[1717637657798,20.0,174.23,174.15,120.0]
[1717637657993,7.19,174.17,174.13,120.0]
[1717637658201,7.19,174.14,174.11,120.0]
[1717637658402,20.0,174.23,174.09,120.0]
[1717637658602,20.0,174.23,174.13,120.0]
[1717637658897,7.19,174.17,174.15,120.0]
[1717637659075,7.19,174.16,174.13,120.0]
[1717637659280,7.19,174.14,174.13,120.0]
[1717637660003,7.19,174.15,174.13,120.0]
[1717637661404,7.19,174.14,174.13,120.0]
[1717637661600,7.19,174.15,174.13,120.0]
[1717637663405,7.19,174.16,174.13,120.0]
[1717637663881,20.0,174.23,174.13,120.0]
[1717637664085,7.19,174.15,174.13,120.0]
[1717637664704,7.19,174.14,174.13,120.0]
[1717637670114,7.19,174.14,174.11,120.0]
[1717637670298,21.6218,174.19,174.08,120.0]
[1717637670489,21.6218,174.19,174.03,8.27191519]
[1717637670490,7.19,174.09,174.07,120.0]
[1717637670690,7.19,174.08,174.07,120.0]
[1717637670898,7.19,174.08,174.06,120.0]
[1717637672399,7.19,174.08,174.02,13.8209]
[1717637672602,7.19,174.08,174.06,120.0]
[1717637672998,20.0,174.18,174.11,120.0]
[1717637673221,7.19,174.14,174.11,120.0]
[1717637674019,7.19,174.13,174.11,120.0]
[1717637674718,7.19,174.12,174.11,120.0]
[1717637674896,7.19,174.12,174.09,120.0]
[1717637675401,7.19,174.11,174.07,120.0]
[1717637675600,7.19,174.15,174.07,120.0]
[1717637675601,7.19,174.1,174.07,120.0]
[1717637676119,7.19,174.11,174.07,120.0]
[1717637677916,7.19,174.15,174.07,120.0]
[1717637678095,7.19,174.1,174.07,120.0]
[1717637679621,7.19,174.1,174.06,120.0]
[1717637679923,7.19,174.09,174.06,120.0]
[1717637683427,7.19,174.09,174.03,13.5145]
[1717637683722,7.19,174.09,174.06,120.0]
[1717637684108,7.19,174.1,174.06,120.0]
[1717637685313,7.19,174.09,174.06,120.0]
[1717637688412,7.19,174.07,174.04,120.0]
[1717637688730,7.19,174.06,174.04,120.0]
[1717637689030,7.19,174.05,174.04,120.0]
[1717637694723,7.19,174.05,174.02,120.0]
[1717637695450,7.19,174.05,173.99,13.4087]
[1717637695451,7.19,174.05,174.03,120.0]
[1717637697922,16.029,174.13,174.01,120.0]
[1717637698140,7.19,174.04,174.01,120.0]
[1717637698445,7.19,174.03,174.01,120.0]
[1717637700039,7.19,174.04,174.01,120.0]
[1717637701046,7.19,174.03,173.99,120.0]
[1717637701339,7.19,174.02,173.99,120.0]
[1717637706643,7.19,174.0,173.96,120.0]
[1717637706823,7.19,173.98,173.96,120.0]
[1717637707023,7.19,173.98,173.94,120.0]
[1717637707445,7.19,173.99,173.94,120.0]
[1717637707949,7.19,173.98,173.94,120.0]
[1717637709047,7.19,173.97,173.94,120.0]
[1717637709356,7.19,173.97,173.92,120.0]
[1717637709931,7.19,173.96,173.9,120.0]
[1717637710129,7.19,173.95,173.9,120.0]
[1717637710850,7.19,173.94,173.9,120.0]
[1717637712258,7.19,173.95,173.9,120.0]
[1717637713334,7.19,173.97,173.93,120.0]
[1717637714463,6.6384,174.02,173.95,120.0]
[1717637714768,7.19,174.0,173.95,120.0]
[1717637715561,51.5084,174.06,173.98,120.0]
[1717637715877,7.19,174.02,173.98,120.0]
[1717637716442,7.19,174.02,173.96,127.19]
[1717637716759,22.7484,174.06,173.98,120.0]
[1717637716953,6.6322,174.06,173.98,120.0]
[1717637717133,7.19,174.03,173.98,120.0]
[1717637717335,7.19,174.04,173.98,120.0]
[1717637719655,7.19,174.03,173.98,120.0]
[1717637719958,7.19,174.02,173.98,120.0]
[1717637720153,7.19,174.03,173.98,120.0]
[1717637720366,7.19,174.02,173.98,120.0]
[1717637723767,13.8222,174.06,173.98,120.0]
[1717637724058,7.19,174.03,173.98,120.0]
[1717637727148,7.19,174.02,173.96,120.0]
[1717637727348,7.19,174.01,173.96,120.0]
[1717637728466,7.19,174.0,173.96,120.0]
[1717637728859,7.19,173.99,173.94,120.0]
[1717637729163,7.19,173.98,173.95,20.0]
[1717637729761,7.19,173.98,173.93,120.0]
[1717637729762,7.19,173.98,173.94,20.0]
[1717637730569,7.19,173.98,173.93,120.0]
[1717637730777,7.19,173.97,173.93,120.0]
[1717637731152,35.3922,174.06,173.93,120.0]
[1717637731153,7.19,173.98,173.93,120.0]
[1717637731456,7.19,173.97,173.93,120.0]
[1717637734085,7.19,173.98,173.93,120.0]
[1717637739789,7.19,173.97,173.93,120.0]
[1717637740783,7.19,173.97,173.91,127.19]
[1717637740981,7.19,173.97,173.92,20.0]
[1717637741167,7.19,173.98,173.92,20.0]
[1717637741992,7.19,173.98,173.93,120.0]
[1717637742976,7.19,173.99,173.93,120.0]
[1717637743276,7.19,173.98,173.93,120.0]
[1717637743884,7.19,173.97,173.93,120.0]
[1717637745985,7.19,173.97,173.91,120.0]
[1717637746173,7.19,173.97,173.92,20.0]
[1717637747274,7.19,173.97,173.91,120.0]
[1717637747789,7.19,173.96,173.91,120.0]
[1717637748590,7.19,173.95,173.89,126.4396]
[1717637748891,7.19,173.95,173.9,20.0]
[1717637749481,7.19,173.95,173.89,120.0]
[1717637749695,7.19,173.94,173.89,120.0]
[1717637752194,7.19,173.93,173.89,120.0]
[1717637753095,6.4119,174.0,173.89,120.0]
[1717637753297,7.19,173.93,173.89,120.0]
[1717637754696,7.19,173.91,173.87,120.0]
[1717637755191,7.19,173.9,173.87,120.0]
[1717637756399,7.19,173.91,173.87,120.0]
[1717637757372,7.19,173.91,173.85,120.0]
[1717637758399,7.19,173.9,173.85,120.0]
[1717637760484,7.19,173.89,173.85,120.0]
[1717637761198,7.19,173.87,173.83,120.0]
[1717637761401,7.19,173.86,173.83,120.0]
[1717637762101,7.19,173.87,173.83,120.0]
[1717637762700,7.19,173.87,173.81,120.0]
[1717637763313,7.19,173.86,173.81,120.0]
[1717637765107,7.19,173.87,173.81,120.0]
[1717637767905,7.19,173.87,173.81,127.19]
[1717637768523,6.3148,173.94,173.81,127.19]
[1717637768690,7.19,173.87,173.81,120.0]
[1717637770214,20.34,173.93,173.83,127.19]
[1717637770389,7.19,173.9,173.84,7.19]
[1717637772301,7.19,173.9,173.83,127.19]
[1717637772911,7.19,173.89,173.83,127.19]
[1717637773297,7.19,173.89,173.83,120.0]
[1717637775018,7.19,173.88,173.83,120.0]
[1717637775215,7.19,173.88,173.81,127.19]
[1717637775399,7.19,173.87,173.81,120.0]
[1717637775587,6.537,173.87,173.81,120.0]
[1717637778609,7.19,173.86,173.81,120.0]
[1717637780019,20.34,173.93,173.81,120.0]
[1717637780220,7.19,173.87,173.81,120.0]
[1717637781324,7.19,173.86,173.81,120.0]
[1717637782716,7.19,173.86,173.81,126.3814]
[1717637783000,20.34,173.93,173.83,120.0]
[1717637783217,7.19,173.88,173.83,120.0]
[1717637786507,7.19,173.87,173.83,120.0]
[1717637786739,7.19,173.87,173.81,133.5714]
[1717637787031,7.19,173.87,173.81,126.3814]
[1717637787528,7.19,173.87,173.81,133.5714]
[1717637788031,7.19,173.87,173.81,126.3814]
[1717637788211,7.19,173.87,173.81,133.5714]
[1717637788709,7.19,173.87,173.81,126.3814]
[1717637789923,7.19,173.86,173.81,120.0]
[1717637790110,7.19,173.85,173.81,120.0]
[1717637792931,7.19,173.86,173.81,120.0]
[1717637793629,20.34,173.93,173.81,120.0]
[1717637793934,7.19,173.86,173.81,120.0]
[1717637794338,20.34,173.93,173.81,120.0]
[1717637794528,20.0,173.93,173.83,120.0]
[1717637795218,7.19,173.89,173.83,120.0]
[1717637795618,20.0,173.93,173.83,120.0]
[1717637796035,7.19,173.89,173.83,120.0]